Workbook

Sheet Quote-Builder
A2: Quote Details -- Unfinished | D2: Quote Details -- Finished | G2: Quote Details -- Finished | J2: Quote Details -- Finished
A4: 3 1/4" Red Oak #1 Common | D4: 3/4" x 5" Select Red Oak, Clear Finish, Select | G4: 3/4" x 3-1/4" Select Red Oak, Clear Finish, Select | J4: 3/4" x 4" Natural Red Oak, Clear Finish, Natural
A5: Total Square Feet | B5: 950 | D5: Total Square Feet | E5: =B5 -> 950 | G5: Total Square Feet | H5: =E5 -> 950 | J5: Total Square Feet | K5: =H5 -> 950
A6: Materials SubTotal | B6: =SUM(B25:B36) -> 394.897625 | D6: Materials SubTotal | E6: =SUM(E25:E29) -> 240.651625 | G6: Materials SubTotal | H6: =SUM(H25:H29) -> 240.651625 | J6: Materials SubTotal | K6: =SUM(K25:K29) -> 240.651625
A7: Wood SubTotal (pre-markup) | B7: =B21 -> 2280 | D7: Wood SubTotal (pre-markup) | E7: =E21 -> 7001.5 | G7: Wood SubTotal (pre-markup) | H7: =H21 -> 6640.5 | J7: Wood SubTotal (pre-markup) | K7: =K21 -> 6099
A8: Tax (8.25%) | B8: =(SUM(B6:B7)*B46) -> 220.6790541 | D8: Tax (8.25%) | E8: =SUM(E6:E7)*E39 -> 597.4775091 | G8: Tax (8.25%) | H8: =SUM(H6:H7)*H39 -> 567.6950091 | J8: Tax (8.25%) | K8: =SUM(K6:K7)*K39 -> 523.0212591
A9: Total With Tax | B9: =SUM(B6:B8) -> 2895.576679 | D9: Total With Tax | E9: =SUM(E6:E8) -> 7839.629134 | G9: Total With Tax | H9: =SUM(H6:H8) -> 7448.846634 | J9: Total With Tax | K9: =SUM(K6:K8) -> 6862.672884
A10: Total cost of materials per SqFt (w/ tax) | B10: =B9/B5 -> 3.047975452 | D10: Total cost of materials per SqFt (w/ tax) | E10: =E9/E5 -> 8.252241194 | G10: Total cost of materials per SqFt (w/ tax) | H10: =H9/H5 -> 7.840891194 | J10: Total cost of materials per SqFt (w/ tax) | K10: =K9/K5 -> 7.223866194
A11: New Cost of Wood w/ Markup | B11: =((B7/B5)+B39)*B5 -> 3230 | D11: New Cost of Wood w/ Markup | E11: =((E7/E5)+E32)*E5 -> 7951.5 | G11: New Cost of Wood w/ Markup | H11: =((H7/H5)+H32)*H5 -> 7590.5 | J11: New Cost of Wood w/ Markup | K11: =((K7/K5)+K32)*K5 -> 7049
A12: Labor | B12: =B5*B40 -> 4750 | D12: Labor | E12: =E5*E33 -> 2850 | G12: Labor | H12: =H5*H33 -> 2850 | J12: Labor | K12: =K5*K33 -> 2850
A13: Total Price Quoted | B13: =(B6*(1+B46))+(B7*B46)+B11+B12 -> 8595.576679 | D13: Total Price Quoted | E13: =(E6*(1+E39))+(E7*E39)+E11+E12 -> 11639.62913 | G13: Total Price Quoted | H13: =(H6*(1+H39))+(H7*H39)+H11+H12 -> 11248.84663 | J13: Total Price Quoted | K13: =(K6*(1+K39))+(K7*K39)+K11+K12 -> 10662.67288
A14: Travel Cost | B14: =B44 -> 352.18 | D14: Travel Cost | E14: =B14 -> 352.18 | G14: Travel Cost | H14: =E14 -> 352.18 | J14: Travel Cost | K14: =H14 -> 352.18
A15: Total With Travel | B15: =B14+B13 -> 8947.756679 | D15: Total with Travel | E15: =E14+E13 -> 11991.80913 | G15: Total with Travel | H15: =H14+H13 -> 11601.02663 | J15: Total with Travel | K15: =K14+K13 -> 11014.85288
A16: Total Quoted per SqFt | B16: =B15/B5 -> 9.418691241 | D16: Total Quoted per SqFt | E16: =E15/E5 -> 12.62295698 | G16: Total Quoted per SqFt | H16: =H15/H5 -> 12.21160698 | J16: Total Quoted per SqFt | K16: =K15/K5 -> 11.59458198
A17: Labor and Wood Markup | B17: =B12+B5 -> 5700 | D17: Labor and Wood Markup | E17: =E12+E5 -> 3800 | G17: Labor and Wood Markup | H17: =H12+H5 -> 3800 | J17: Labor and Wood Markup | K17: =K12+K5 -> 3800
A19: Details | D19: Details | G19: Details | J19: Details
A20: Wood | D20: Wood | G20: Wood | J20: Wood
A21: 3 1/4" Red Oak #1 Common | B21: 2280 | D21: 3/4" x 5" Select Red Oak, Clear Finish, Select | E21: =E22*E5 -> 7001.5 | G21: 3/4" x 3-1/4" Select Red Oak, Clear Finish, Select | H21: =H22*H5 -> 6640.5 | J21: 3/4" x 4" Natural Red Oak, Clear Finish, Natural | K21: =K22*K5 -> 6099
A22: Cost per Square Foot | B22: =B7/B5 -> 2.4 | D22: Estimated Cost per Square Foot | E22: 7.37 | G22: Estimated Cost per Square Foot | H22: 6.99 | J22: Estimated Cost per Square Foot | K22: 6.42
A24: Materials | D24: Materials | G24: Materials | J24: Materials
A25: Polo Plaz 5Gal Supreme Finish Satin | B25: =QuoteUnFin!$H$3*$B$5 -> 61.275 | D25: Clear Film 6 mil 10 x 100 | E25: =QuoteUnFin!$H$5*$B$5 -> 31.825 | G25: Clear Film 6 mil 10 x 100 | H25: =QuoteUnFin!$H$5*$B$5 -> 31.825 | J25: Clear Film 6 mil 10 x 100 | K25: =QuoteUnFin!$H$5*$B$5 -> 31.825
A26: BonaKemi DriFast 1Gal Stain Antique Brown | B26: =QuoteUnFin!$H$4*$B$5 -> 57.076 | D26: 15# Roofing Felt - G.A.P. Label | E26: =QuoteUnFin!$H$6*$B$5 -> 34.4375 | G26: 15# Roofing Felt - G.A.P. Label | H26: =QuoteUnFin!$H$6*$B$5 -> 34.4375 | J26: 15# Roofing Felt - G.A.P. Label | K26: =QuoteUnFin!$H$6*$B$5 -> 34.4375
A27: Clear Film 6 mil 10 x 100 | B27: =QuoteUnFin!$H$5*$B$5 -> 31.825 | D27: Staple - 1 1/2" Spotnails | E27: =QuoteUnFin!$H$7*$B$5 -> 46.436 | G27: Staple - 1 1/2" Spotnails | H27: =QuoteUnFin!$H$7*$B$5 -> 46.436 | J27: Staple - 1 1/2" Spotnails | K27: =QuoteUnFin!$H$7*$B$5 -> 46.436
A28: 15# Roofing Felt - G.A.P. Label | B28: =QuoteUnFin!$H$6*$B$5 -> 34.4375 | D28: 1 1/4 Pins - Aerosmith | E28: =QuoteUnFin!$H$8*$B$5 -> 61.75 | G28: 1 1/4 Pins - Aerosmith | H28: =QuoteUnFin!$H$8*$B$5 -> 61.75 | J28: 1 1/4 Pins - Aerosmith | K28: =QuoteUnFin!$H$8*$B$5 -> 61.75
A29: Staple - 1 1/2" Spotnails | B29: =QuoteUnFin!$H$7*$B$5 -> 46.436 | D29: 5/8" Plywood - 19/32 PRS 40/20 Ext 1 SYP | E29: =QuoteUnFin!$H$9*$B$5 -> 66.203125 | G29: 5/8" Plywood - 19/32 PRS 40/20 Ext 1 SYP | H29: =QuoteUnFin!$H$9*$B$5 -> 66.203125 | J29: 5/8" Plywood - 19/32 PRS 40/20 Ext 1 SYP | K29: =QuoteUnFin!$H$9*$B$5 -> 66.203125
A30: 1 1/4 Pins - Aerosmith | B30: =QuoteUnFin!$H$8*$B$5 -> 61.75
A31: 5/8" Plywood - 19/32 PRS 40/20 Ext 1 SYP | B31: =QuoteUnFin!$H$9*$B$5 -> 66.203125 | D31: Markup | G31: Markup | J31: Markup
A32: 7 7/8 x 29 1/2 Norton Belt 36 Grit Silicon Carbide | B32: =QuoteUnFin!$H$10 -> 15.25 | D32: Wood | E32: 1 | G32: Wood | H32: 1 | J32: Wood | K32: 1
A33: 7 7/8 x 29 1/2 Norton Belt 80 Grit Silicon Carbide | B33: =QuoteUnFin!$H$11 -> 6.37 | D33: Labor | E33: 3 | G33: Labor | H33: 3 | J33: Labor | K33: 3
A34: 16in Norton Screen 80 Grit | B34: =QuoteUnFin!$H$12 -> 5.25
A35: 7 x 7/8 Norton Edger Disc Silicon Carbide 80 Grit | B35: =QuoteUnFin!$H$13*$B$5 -> 4.75 | D35: Distance | G35: Distance | J35: Distance
A36: 7 x 7/8 Norton Edger Disc Silicon Carbide 100 Grit | B36: =QuoteUnFin!$H$14*$B$5 -> 4.275 | D36: Miles Traveled | E36: =B43 -> 1243 | G36: Miles Traveled | H36: =E43 -> 2.375 | J36: Miles Traveled | K36: =H43 -> 2.375
D37: Total Cost | E37: =B44 -> 352.18 | G37: Total Cost | H37: =E44 -> 0.95 | J37: Total Cost | K37: =H44 -> 0.95
A38: Markup
A39: Wood | B39: 1 | D39: Tax Rate | E39: 0.0825 | G39: Tax Rate | H39: 0.0825 | J39: Tax Rate | K39: 0.0825
A40: Labor | B40: 5
D41: Materials | E41: Qty. Used | G41: Materials | H41: Qty. Used | J41: Materials | K41: Qty. Used
A42: Distance | D42: Clear Film 6 mil 10 x 100 | E42: =$B$5/1000 -> 0.95 | G42: Clear Film 6 mil 10 x 100 | H42: =$B$5/1000 -> 0.95 | J42: Clear Film 6 mil 10 x 100 | K42: =$B$5/1000 -> 0.95
A43: Miles Traveled | B43: 1243 | D43: 15# Roofing Felt - G.A.P. Label | E43: =$B$5/400 -> 2.375 | G43: 15# Roofing Felt - G.A.P. Label | H43: =$B$5/400 -> 2.375 | J43: 15# Roofing Felt - G.A.P. Label | K43: =$B$5/400 -> 2.375
A44: Total Cost | B44: 352.18 | D44: Staple - 1 1/2" Spotnails | E44: =$B$5/1000 -> 0.95 | G44: Staple - 1 1/2" Spotnails | H44: =$B$5/1000 -> 0.95 | J44: Staple - 1 1/2" Spotnails | K44: =$B$5/1000 -> 0.95
D45: 1 1/4 Pins - Aerosmith | E45: =$B$5/1000 -> 0.95 | G45: 1 1/4 Pins - Aerosmith | H45: =$B$5/1000 -> 0.95 | J45: 1 1/4 Pins - Aerosmith | K45: =$B$5/1000 -> 0.95
A46: Tax Rate | B46: 0.0825 | D46: 5/8" Plywood - 19/32 PRS 40/20 Ext 1 SYP | E46: =$B$5/32 -> 29.6875 | G46: 5/8" Plywood - 19/32 PRS 40/20 Ext 1 SYP | H46: =$B$5/32 -> 29.6875 | J46: 5/8" Plywood - 19/32 PRS 40/20 Ext 1 SYP | K46: =$B$5/32 -> 29.6875
A48: Materials | B48: Qty. Used
A49: Polo Plaz 5Gal Supreme Finish Satin | B49: =B5/2000 -> 0.475
A50: BonaKemi DriFast 1Gal Stain Antique Brown | B50: =B5/500 -> 1.9
A51: Clear Film 6 mil 10 x 100 | B51: =$B$5/1000 -> 0.95
A52: 15# Roofing Felt - G.A.P. Label | B52: =$B$5/400 -> 2.375
A53: Staple - 1 1/2" Spotnails | B53: =$B$5/1000 -> 0.95
A54: 1 1/4 Pins - Aerosmith | B54: =$B$5/1000 -> 0.95
A55: 5/8" Plywood - 19/32 PRS 40/20 Ext 1 SYP | B55: =$B$5/32 -> 29.6875
A56: 7 7/8 x 29 1/2 Norton Belt 36 Grit Silicon Carbide | B56: =$B$5/1000 -> 0.95
A57: 7 7/8 x 29 1/2 Norton Belt 80 Grit Silicon Carbide | B57: =$B$5/1000 -> 0.95
A58: 16in Norton Screen 80 Grit | B58: =$B$5/100 -> 9.5
A59: 7 x 7/8 Norton Edger Disc Silicon Carbide 80 Grit | B59: =$B$5/100 -> 9.5
A60: 7 x 7/8 Norton Edger Disc Silicon Carbide 100 Grit | B60: =$B$5/100 -> 9.5

Sheet Final-Quote
B2: Bird Hardwood Floors | H2: Quote:
H3: 1234
B6: Total Square Footage | G6: 950
B7: Total Cost | G7: 11601.03
B8: Cost per Square Foot | G8: =G7/G6 -> 12.21161053
B11: Details
B12: Wood Materials
B13: 3 1/4" Red Oak #1 Common [Total Cost] | G13: 6640.5
B14: Cost per Square Foot | G14: =G13/G6 -> 6.99

Sheet Contacts
A1: ID | B1: Contact Type | C1: Company / Person | D1: Last Name | E1: First Name | F1: Address | G1: City | H1: State | I1: ZIP | J1: Phone | K1: Email | L1: Date Completed | M1: Note
A2: 1 | B2: Other | C2: Sample Restaurant Group | D2: Smith | E2: Bob | F2: 1529 Gardenia Ave. | G2: Long Beach | H2: CA | I2: 90813 | J2: (562) 591-6214 | K2: roypeckham@gmail.com | L2: 2010-09-20
A3: 2 | B3: Client | C3: businesgfhdfgh | D3: Peckham | E3: Roy | F3: 650 N 500 W Apartment #303 | G3: Provo | H3: UT | I3: 84601 | J3: (562) 243-9548 | K3: roypeckham@gmail.com | M3: note 1
A4: 3 | B4: Other | C4: Sanchez Contractors | D4: Sanchez | E4: Marco | F4: 3702 Tree Manor Lane | G4: Kingwood | H4: TX | I4: 77345 | J4: (281) 360-9842
A5: 4 | B5: Client | C5: Person | D5: Peckham | E5: Robert | F5: 650 N 500 W Apartment #303 | G5: Provo | H5: UT | I5: 84601 | J5: (562) 243-9548 | K5: roypeckham@gmail.com | M5: note 3
A6: 5 | B6: Client | C6: asdf | D6: asdf | E6: asdf | F6: asdf | G6: asdfasd | H6: OK | I6: asdfasdfasdfas | J6: asdf | K6: asdf | M6: asdf

Sheet Comparables
A1: Category | B1: Sub-Category | C1: Maker | D1: Name | E1: High Price | F1: Low Price | G1: Link
A2: Solid Hardwood | B2: Prefinished Bellawood | C2: BELLAWOOD | D2: 3/4" x 3-1/4" Natural Australian Cypress, Clear Finish, Natural | E2: 8.69 | F2: 4.69 | G2: /catalog/product.jsp?productId=1541&amp;categoryId=348&amp;sectionId=1&amp;subCategoryId=0
A3: Solid Hardwood | B3: Prefinished Bellawood | C3: BELLAWOOD | D3: 3/4" x 5" Brazilian Cherry, Clear Finish, Select | E3: 8.99 | F3: 5.89 | G3: /catalog/product.jsp?productId=1550&amp;categoryId=348&amp;sectionId=1&amp;subCategoryId=0
A4: Solid Hardwood | B4: Prefinished Bellawood | C4: BELLAWOOD | D4: 3/4" x 3-1/4" Select Golden Teak, Clear Finish, Select | E4: 7.59 | F4: 6.19 | G4: /catalog/product.jsp?productId=1571&amp;categoryId=348&amp;sectionId=1&amp;subCategoryId=0
A5: Solid Hardwood | B5: Prefinished Bellawood | C5: BELLAWOOD | D5: 3/8" x 3" Select Brazilian Koa, Clear Finish, Select | E5: 7.29 | F5: 5.09 | G5: /catalog/product.jsp?productId=1573&amp;categoryId=348&amp;sectionId=1&amp;subCategoryId=0
A6: Solid Hardwood | B6: Prefinished Bellawood | C6: BELLAWOOD | D6: 3/4" x 3-1/4" Brazilian Koa, Clear Finish, Select | E6: 8.45 | F6: 6.19 | G6: /catalog/product.jsp?productId=1574&amp;categoryId=348&amp;sectionId=1&amp;subCategoryId=0
A7: Solid Hardwood | B7: Prefinished Bellawood | C7: BELLAWOOD | D7: 3/4" x 5" Brazilian Koa Flooring, Clear Finish, Select | E7: 9.95 | F7: 6.39 | G7: /catalog/product.jsp?productId=1575&amp;categoryId=348&amp;sectionId=1&amp;subCategoryId=0
A8: Solid Hardwood | B8: Prefinished Bellawood | C8: BELLAWOOD | D8: 5/16" x 2-1/4" Select Brazilian Koa, Clear Finish, Select | E8: 6.45 | F8: 4.09 | G8: /catalog/product.jsp?productId=3198&amp;categoryId=348&amp;sectionId=1&amp;subCategoryId=0
A9: Solid Hardwood | B9: Prefinished Bellawood | C9: BELLAWOOD | D9: 5/16" x 2-1/4" Select Brazilian Mesquite, Clear Finish, Select | E9: 6.45 | F9: 3.99 | G9: /catalog/product.jsp?productId=3457&amp;categoryId=348&amp;sectionId=1&amp;subCategoryId=0
A10: Solid Hardwood | B10: Prefinished Bellawood | C10: BELLAWOOD | D10: 5/16" x 2-1/4" Select Brazilian Cherry, Clear Finish, Select | E10: 6.45 | F10: 3.89 | G10: /catalog/product.jsp?productId=2961&amp;categoryId=348&amp;sectionId=1&amp;subCategoryId=0
A11: Solid Hardwood | B11: Prefinished Bellawood | C11: BELLAWOOD | D11: 5/16" x 2-1/4" Select Brazilian Walnut, Clear Finish, Select | E11: 6.45 | F11: 4.19 | G11: /catalog/product.jsp?productId=3067&amp;categoryId=348&amp;sectionId=1&amp;subCategoryId=0
A12: Solid Hardwood | B12: Prefinished Bellawood | C12: BELLAWOOD | D12: 5/16" x 2-1/4" Select Golden Teak, Clear Finish, Select | E12: 6.45 | F12: 4.09 | G12: /catalog/product.jsp?productId=3216&amp;categoryId=348&amp;sectionId=1&amp;subCategoryId=0
A13: Solid Hardwood | B13: Prefinished Bellawood | C13: BELLAWOOD | D13: 5/16" x 2-1/4" Select Brazilian Teak, Clear Finish, Select | E13: 5.99 | F13: 2.99 | G13: /catalog/product.jsp?productId=3519&amp;categoryId=348&amp;sectionId=1&amp;subCategoryId=0
A14: Solid Hardwood | B14: Prefinished Bellawood | C14: BELLAWOOD | D14: 5/16" x 2-1/4" Select Brazilian Redwood, Clear Finish, Select | E14: 6.45 | F14: 4.19 | G14: /catalog/product.jsp?productId=4337&amp;categoryId=348&amp;sectionId=1&amp;subCategoryId=0
A15: Solid Hardwood | B15: Prefinished Bellawood | C15: BELLAWOOD | D15: 5/16" x 2-1/4" Select Brazilian Chestnut, Clear Finish, Select | E15: 5.99 | F15: 4.09 | G15: /catalog/product.jsp?productId=5596&amp;categoryId=348&amp;sectionId=1&amp;subCategoryId=0
A16: Solid Hardwood | B16: Prefinished Bellawood | C16: BELLAWOOD | D16: 5/16" x 3" Brazilian Mesquite, Clear Finish, Select | E16: 6.45 | F16: 4.19 | G16: /catalog/product.jsp?productId=6859&amp;categoryId=348&amp;sectionId=1&amp;subCategoryId=0
A17: Solid Hardwood | B17: Prefinished Bellawood | C17: BELLAWOOD | D17: 5/16" x 3" Brazilian Koa, Clear Finish, Select | E17: 6.45 | F17: 4.19 | G17: /catalog/product.jsp?productId=6924&amp;categoryId=348&amp;sectionId=1&amp;subCategoryId=0
A18: Solid Hardwood | B18: Prefinished Bellawood | C18: BELLAWOOD | D18: 5/16" x 3" Brazilian Cherry Select, Clear Finish, Select | E18: 6.45 | F18: 3.89 | G18: /catalog/product.jsp?productId=6997&amp;categoryId=348&amp;sectionId=1&amp;subCategoryId=0
A19: Solid Hardwood | B19: Prefinished Bellawood | C19: BELLAWOOD | D19: 5/16" x 3" Brazilian Teak Select, Clear Finish, Select | E19: 5.99 | F19: 4.29 | G19: /catalog/product.jsp?productId=6998&amp;categoryId=348&amp;sectionId=1&amp;subCategoryId=0
A20: Solid Hardwood | B20: Prefinished Bellawood | C20: BELLAWOOD | D20: 5/16" x 3" Select Golden Teak, Clear Finish, Select | E20: 6.45 | F20: 4.19 | G20: /catalog/product.jsp?productId=7010&amp;categoryId=348&amp;sectionId=1&amp;subCategoryId=0
A21: Solid Hardwood | B21: Prefinished Bellawood | C21: BELLAWOOD | D21: 3/8" x 3" Natural Maple, Clear Finish, Natural | E21: 7.29 | F21: 4.19 | G21: /catalog/product.jsp?productId=1515&amp;categoryId=348&amp;sectionId=1&amp;subCategoryId=0
A22: Solid Hardwood | B22: Prefinished Bellawood | C22: BELLAWOOD | D22: 3/8" x 3" Select Maple, Clear Finish, Select | E22: 7.49 | F22: 4.39 | G22: /catalog/product.jsp?productId=1518&amp;categoryId=348&amp;sectionId=1&amp;subCategoryId=0
A23: Solid Hardwood | B23: Prefinished Bellawood | C23: BELLAWOOD | D23: 3/8" x 3" Natural Red Oak, Clear Finish, Natural | E23: 7.29 | F23: 4.29 | G23: /catalog/product.jsp?productId=1527&amp;categoryId=348&amp;sectionId=1&amp;subCategoryId=0
A24: Solid Hardwood | B24: Prefinished Bellawood | C24: BELLAWOOD | D24: 3/8" x 3" Select Red Oak, Clear Finish, Select | E24: 7.79 | F24: 4.49 | G24: /catalog/product.jsp?productId=1530&amp;categoryId=348&amp;sectionId=1&amp;subCategoryId=0
A25: Solid Hardwood | B25: Prefinished Bellawood | C25: BELLAWOOD | D25: 3/8" x 3" Select Brazilian Mesquite, Clear Finish, Select | E25: 7.29 | F25: 4.99 | G25: /catalog/product.jsp?productId=1555&amp;categoryId=348&amp;sectionId=1&amp;subCategoryId=0
A26: Solid Hardwood | B26: Prefinished Bellawood | C26: BELLAWOOD | D26: 3/8" x 3" Select Bolivian Rosewood, Clear Finish, Select | E26: 5.99 | F26: 5.09 | G26: /catalog/product.jsp?productId=1559&amp;categoryId=348&amp;sectionId=1&amp;subCategoryId=0
A27: Solid Hardwood | B27: Prefinished Bellawood | C27: BELLAWOOD | D27: 3/8" x 3" Brazilian Teak, Clear Finish, Select | E27: 7.49 | F27: 5.19 | G27: /catalog/product.jsp?productId=1564&amp;categoryId=348&amp;sectionId=1&amp;subCategoryId=0
A28: Solid Hardwood | B28: Prefinished Bellawood | C28: BELLAWOOD | D28: 3/8" x 3" Golden Teak, Clear Finish, Select | E28: 7.69 | F28: 5.19 | G28: /catalog/product.jsp?productId=1570&amp;categoryId=348&amp;sectionId=1&amp;subCategoryId=0
A29: Solid Hardwood | B29: Prefinished Bellawood | C29: BELLAWOOD | D29: 3/8" x 3" Select Purple Heart, Clear Finish, Select | E29: 7.95 | F29: 4.49 | G29: /catalog/product.jsp?productId=1578&amp;categoryId=348&amp;sectionId=1&amp;subCategoryId=0
A30: Solid Hardwood | B30: Prefinished Bellawood | C30: BELLAWOOD | D30: 3/8" x 3" Select Santos Mahogany, Clear Finish, Select | E30: 8.69 | F30: 5.89 | G30: /catalog/product.jsp?productId=1581&amp;categoryId=348&amp;sectionId=1&amp;subCategoryId=0
A31: Solid Hardwood | B31: Prefinished Bellawood | C31: BELLAWOOD | D31: 3/8" x 3" Select Brazilian Redwood, Clear Finish, Select | E31: 7.29 | F31: 4.89 | G31: /catalog/product.jsp?productId=3218&amp;categoryId=348&amp;sectionId=1&amp;subCategoryId=0
A32: Solid Hardwood | B32: Prefinished Bellawood | C32: BELLAWOOD | D32: 1/2" x 3-1/4" Natural Australian Cypress, Clear Finish, Natural | E32: 6.89 | F32: 4.79 | G32: /catalog/product.jsp?productId=1540&amp;categoryId=348&amp;sectionId=1&amp;subCategoryId=0
A33: Solid Hardwood | B33: Prefinished Bellawood | C33: BELLAWOOD | D33: 1/2" x 3" Brazilian Cherry Lite, Clear Finish, Select | E33: 7.49 | F33: 4.89 | G33: /catalog/product.jsp?productId=1546&amp;categoryId=348&amp;sectionId=1&amp;subCategoryId=0
A34: Solid Hardwood | B34: Prefinished Bellawood | C34: BELLAWOOD | D34: 3/4" x 2-1/4" Natural Ash, Clear Finish, Natural | E34: 4.79 | F34: 3.99 | G34: /catalog/product.jsp?productId=1477&amp;categoryId=348&amp;sectionId=1&amp;subCategoryId=0
A35: Solid Hardwood | B35: Prefinished Bellawood | C35: BELLAWOOD | D35: 3/4" x 2-1/4" Select Ash, Clear Finish, Select | E35: 7.45 | F35: 4.29 | G35: /catalog/product.jsp?productId=1478&amp;categoryId=348&amp;sectionId=1&amp;subCategoryId=0
A36: Solid Hardwood | B36: Prefinished Bellawood | C36: BELLAWOOD | D36: 3/4" x 3-1/4" Natural Ash, Clear Finish, Natural | E36: 5.99 | F36: 4.29 | G36: /catalog/product.jsp?productId=1479&amp;categoryId=348&amp;sectionId=1&amp;subCategoryId=0
A37: Solid Hardwood | B37: Prefinished Bellawood | C37: BELLAWOOD | D37: 3/4" x 3-1/4" Select Ash, Clear Finish, Select | E37: 7.95 | F37: 4.99 | G37: /catalog/product.jsp?productId=1480&amp;categoryId=348&amp;sectionId=1&amp;subCategoryId=0
A38: Solid Hardwood | B38: Prefinished Bellawood | C38: BELLAWOOD | D38: 3/4" x 4" Natural Ash, Clear Finish, Natural | E38: 7.99 | F38: 4.49 | G38: /catalog/product.jsp?productId=1481&amp;categoryId=348&amp;sectionId=1&amp;subCategoryId=0
A39: Solid Hardwood | B39: Prefinished Bellawood | C39: BELLAWOOD | D39: 3/4" x 4" Select Ash, Clear Finish, Select | E39: 8.45 | F39: 5.29 | G39: /catalog/product.jsp?productId=1482&amp;categoryId=348&amp;sectionId=1&amp;subCategoryId=0
A40: Solid Hardwood | B40: Prefinished Bellawood | C40: BELLAWOOD | D40: 3/4" x 5" Natural Ash, Clear Finish, Natural | E40: 7.95 | F40: 4.69 | G40: /catalog/product.jsp?productId=1483&amp;categoryId=348&amp;sectionId=1&amp;subCategoryId=0
A41: Solid Hardwood | B41: Prefinished Bellawood | C41: BELLAWOOD | D41: 3/4" x 5" Select Ash, Clear Finish, Select | E41: 7.95 | F41: 5.59 | G41: /catalog/product.jsp?productId=1484&amp;categoryId=348&amp;sectionId=1&amp;subCategoryId=0
A42: Solid Hardwood | B42: Prefinished Bellawood | C42: BELLAWOOD | D42: 3/4" x 3" Natural American Walnut, Clear Finish, Natural | E42: 9.95 | F42: 6.99 | G42: /catalog/product.jsp?productId=1485&amp;categoryId=348&amp;sectionId=1&amp;subCategoryId=0
A43: Solid Hardwood | B43: Prefinished Bellawood | C43: BELLAWOOD | D43: 3/4" x 4" American Walnut, Clear Finish, Natural | E43: 9.95 | F43: 6.99 | G43: /catalog/product.jsp?productId=1486&amp;categoryId=348&amp;sectionId=1&amp;subCategoryId=0
A44: Solid Hardwood | B44: Prefinished Bellawood | C44: BELLAWOOD | D44: 3/4" x 5" Natural American Walnut, Clear Finish, Natural | E44: 10.95 | F44: 7.49 | G44: /catalog/product.jsp?productId=1487&amp;categoryId=348&amp;sectionId=1&amp;subCategoryId=0
A45: Solid Hardwood | B45: Prefinished Bellawood | C45: BELLAWOOD | D45: 3/4" x 2-1/4" Select Birdseye Maple, Clear Finish, Select | E45: 10.95 | F45: 7.29 | G45: /catalog/product.jsp?productId=1489&amp;categoryId=348&amp;sectionId=1&amp;subCategoryId=0
A46: Solid Hardwood | B46: Prefinished Bellawood | C46: BELLAWOOD | D46: 3/4" x 3-1/4" Select Birdseye Maple, Clear Finish, Select | E46: 10.95 | F46: 7.49 | G46: /catalog/product.jsp?productId=1491&amp;categoryId=348&amp;sectionId=1&amp;subCategoryId=0
A47: Solid Hardwood | B47: Prefinished Bellawood | C47: BELLAWOOD | D47: 3/4" x 2-1/4" Natural Beech, Clear Finish, Natural | E47: 7.29 | F47: 4.69 | G47: /catalog/product.jsp?productId=1492&amp;categoryId=348&amp;sectionId=1&amp;subCategoryId=0
A48: Solid Hardwood | B48: Prefinished Bellawood | C48: BELLAWOOD | D48: 3/4" x 2-1/4" Select Beech, Clear Finish, Select | E48: 7.95 | F48: 4.99 | G48: /catalog/product.jsp?productId=1493&amp;categoryId=348&amp;sectionId=1&amp;subCategoryId=0
A49: Solid Hardwood | B49: Prefinished Bellawood | C49: BELLAWOOD | D49: 3/4" x 3-1/4" Natural Beech, Clear Finish, Natural | E49: 7.39 | F49: 4.69 | G49: /catalog/product.jsp?productId=1494&amp;categoryId=348&amp;sectionId=1&amp;subCategoryId=0
A50: Solid Hardwood | B50: Prefinished Bellawood | C50: BELLAWOOD | D50: 3/4" x 3-1/4" Select Beech, Clear Finish, Select | E50: 8.49 | F50: 5.49 | G50: /catalog/product.jsp?productId=1495&amp;categoryId=348&amp;sectionId=1&amp;subCategoryId=0
A51: Solid Hardwood | B51: Prefinished Bellawood | C51: BELLAWOOD | D51: 3/4" x 2-1/4" Natural Birch, Clear Finish, Natural | E51: 7.49 | F51: 4.29 | G51: /catalog/product.jsp?productId=1496&amp;categoryId=348&amp;sectionId=1&amp;subCategoryId=0
A52: Solid Hardwood | B52: Prefinished Bellawood | C52: BELLAWOOD | D52: 3/4" x 2-1/4" Select Birch, Clear Finish, Select | E52: 7.39 | F52: 4.69 | G52: /catalog/product.jsp?productId=1497&amp;categoryId=348&amp;sectionId=1&amp;subCategoryId=0
A53: Solid Hardwood | B53: Prefinished Bellawood | C53: BELLAWOOD | D53: 3/4" x 3-1/4" Natural Birch, Clear Finish, Natural | E53: 7.45 | F53: 4.79 | G53: /catalog/product.jsp?productId=1498&amp;categoryId=348&amp;sectionId=1&amp;subCategoryId=0
A54: Solid Hardwood | B54: Prefinished Bellawood | C54: BELLAWOOD | D54: 3/4" x 3-1/4" Select Birch, Clear Finish, Select | E54: 7.49 | F54: 5.49 | G54: /catalog/product.jsp?productId=1499&amp;categoryId=348&amp;sectionId=1&amp;subCategoryId=0
A55: Solid Hardwood | B55: Prefinished Bellawood | C55: BELLAWOOD | D55: 3/4" x 2-1/4" Natural American Cherry, Clear Finish, Natural | E55: 7.95 | F55: 4.39 | G55: /catalog/product.jsp?productId=1500&amp;categoryId=348&amp;sectionId=1&amp;subCategoryId=0
A56: Solid Hardwood | B56: Prefinished Bellawood | C56: BELLAWOOD | D56: 3/4" x 3-1/4" Select American Cherry, Clear Finish, Select | E56: 8.95 | F56: 5.09 | G56: /catalog/product.jsp?productId=1503&amp;categoryId=348&amp;sectionId=1&amp;subCategoryId=0
A57: Solid Hardwood | B57: Prefinished Bellawood | C57: BELLAWOOD | D57: 3/4" x 4" Natural American Cherry, Clear Finish, Natural | E57: 8.49 | F57: 4.79 | G57: /catalog/product.jsp?productId=1504&amp;categoryId=348&amp;sectionId=1&amp;subCategoryId=0
A58: Solid Hardwood | B58: Prefinished Bellawood | C58: BELLAWOOD | D58: 3/4" x 4" Select American Cherry, Clear Finish, Select | E58: 9.95 | F58: 5.19 | G58: /catalog/product.jsp?productId=1505&amp;categoryId=348&amp;sectionId=1&amp;subCategoryId=0
A59: Solid Hardwood | B59: Prefinished Bellawood | C59: BELLAWOOD | D59: 3/4" x 5" Natural American Cherry, Clear Finish, Natural | E59: 8.95 | F59: 5.19 | G59: /catalog/product.jsp?productId=1506&amp;categoryId=348&amp;sectionId=1&amp;subCategoryId=0
A60: Solid Hardwood | B60: Prefinished Bellawood | C60: BELLAWOOD | D60: 3/4" x 5" Select American Cherry, Clear Finish, Select | E60: 8.95 | F60: 5.59 | G60: /catalog/product.jsp?productId=1507&amp;categoryId=348&amp;sectionId=1&amp;subCategoryId=0
A61: Solid Hardwood | B61: Prefinished Bellawood | C61: BELLAWOOD | D61: 3/4" x 4" Natural Hickory, Clear Finish, Natural | E61: 8.49 | F61: 5.29 | G61: /catalog/product.jsp?productId=1510&amp;categoryId=348&amp;sectionId=1&amp;subCategoryId=0
A62: Solid Hardwood | B62: Prefinished Bellawood | C62: BELLAWOOD | D62: 3/4" x 2-1/4" Natural Maple, Clear Finish, Natural | E62: 7.49 | F62: 4.29 | G62: /catalog/product.jsp?productId=1512&amp;categoryId=348&amp;sectionId=1&amp;subCategoryId=0
A63: Solid Hardwood | B63: Prefinished Bellawood | C63: BELLAWOOD | D63: 3/4" x 2-1/4" Maple, Clear Finish, Rustic | E63: 6.95 | F63: 3.79 | G63: /catalog/product.jsp?productId=1513&amp;categoryId=348&amp;sectionId=1&amp;subCategoryId=0
A64: Solid Hardwood | B64: Prefinished Bellawood | C64: BELLAWOOD | D64: 3/4" x 2-1/4" Maple, Clear Finish, Select | E64: 8.49 | F64: 4.69 | G64: /catalog/product.jsp?productId=1514&amp;categoryId=348&amp;sectionId=1&amp;subCategoryId=0
A65: Solid Hardwood | B65: Prefinished Bellawood | C65: BELLAWOOD | D65: 3/4" x 3-1/4" Natural Maple, Clear Finish, Natural | E65: 7.95 | F65: 4.79 | G65: /catalog/product.jsp?productId=1516&amp;categoryId=348&amp;sectionId=1&amp;subCategoryId=0
A66: Solid Hardwood | B66: Prefinished Bellawood | C66: BELLAWOOD | D66: 3/4" x 3-1/4" Rustic Maple, Clear Finish, Rustic | E66: 7.49 | F66: 4.39 | G66: /catalog/product.jsp?productId=1517&amp;categoryId=348&amp;sectionId=1&amp;subCategoryId=0
A67: Solid Hardwood | B67: Prefinished Bellawood | C67: BELLAWOOD | D67: 3/4" x 3-1/4" Select Maple, Clear Finish, Select | E67: 8.95 | F67: 5.19 | G67: /catalog/product.jsp?productId=1519&amp;categoryId=348&amp;sectionId=1&amp;subCategoryId=0
A68: Solid Hardwood | B68: Prefinished Bellawood | C68: BELLAWOOD | D68: 3/4" x 4" Natural Maple, Clear Finish, Natural | E68: 7.95 | F68: 5.29 | G68: /catalog/product.jsp?productId=1520&amp;categoryId=348&amp;sectionId=1&amp;subCategoryId=0
A69: Solid Hardwood | B69: Prefinished Bellawood | C69: BELLAWOOD | D69: 3/4" x 4" Select Maple, Clear Finish, Select | E69: 9.49 | F69: 5.49 | G69: /catalog/product.jsp?productId=1521&amp;categoryId=348&amp;sectionId=1&amp;subCategoryId=0
A70: Solid Hardwood | B70: Prefinished Bellawood | C70: BELLAWOOD | D70: 3/4" x 5" Natural Maple, Clear Finish, Natural | E70: 8.49 | F70: 5.69 | G70: /catalog/product.jsp?productId=1522&amp;categoryId=348&amp;sectionId=1&amp;subCategoryId=0
A71: Solid Hardwood | B71: Prefinished Bellawood | C71: BELLAWOOD | D71: 3/4" x 5" Select Maple, Clear Finish, Select | E71: 10.49 | F71: 5.89 | G71: /catalog/product.jsp?productId=1523&amp;categoryId=348&amp;sectionId=1&amp;subCategoryId=0
A72: Solid Hardwood | B72: Prefinished Bellawood | C72: BELLAWOOD | D72: 3/4" x 2-1/4" Natural Red Oak, Clear Finish, Natural | E72: 6.59 | F72: 4.49 | G72: /catalog/product.jsp?productId=1524&amp;categoryId=348&amp;sectionId=1&amp;subCategoryId=0
A73: Solid Hardwood | B73: Prefinished Bellawood | C73: BELLAWOOD | D73: 3/4" x 2-1/4" Rustic Red Oak, Clear Finish, Rustic | E73: 6.95 | F73: 3.79 | G73: /catalog/product.jsp?productId=1525&amp;categoryId=348&amp;sectionId=1&amp;subCategoryId=0
A74: Solid Hardwood | B74: Prefinished Bellawood | C74: BELLAWOOD | D74: 3/4" x 2-1/4" Select Red Oak, Clear Finish, Select | E74: 6.99 | F74: 4.69 | G74: /catalog/product.jsp?productId=1526&amp;categoryId=348&amp;sectionId=1&amp;subCategoryId=0
A75: Solid Hardwood | B75: Prefinished Bellawood | C75: BELLAWOOD | D75: 3/4" x 3-1/4" Natural Red Oak, Clear Finish, Natural | E75: 7.59 | F75: 4.79 | G75: /catalog/product.jsp?productId=1528&amp;categoryId=348&amp;sectionId=1&amp;subCategoryId=0
A76: Solid Hardwood | B76: Prefinished Bellawood | C76: BELLAWOOD | D76: 3/4" x 3-1/4" Rustic Red Oak, Clear Finish, Rustic | E76: 7.49 | F76: 4.69 | G76: /catalog/product.jsp?productId=1529&amp;categoryId=348&amp;sectionId=1&amp;subCategoryId=0
A77: Solid Hardwood | B77: Prefinished Bellawood | C77: BELLAWOOD | D77: 3/4" x 3-1/4" Select Red Oak, Clear Finish, Select | E77: 8.49 | F77: 5.49 | G77: /catalog/product.jsp?productId=1531&amp;categoryId=348&amp;sectionId=1&amp;subCategoryId=0
A78: Solid Hardwood | B78: Prefinished Bellawood | C78: BELLAWOOD | D78: 3/4" x 4" Natural Red Oak, Clear Finish, Natural | E78: 7.95 | F78: 4.89 | G78: /catalog/product.jsp?productId=1532&amp;categoryId=348&amp;sectionId=1&amp;subCategoryId=0
A79: Solid Hardwood | B79: Prefinished Bellawood | C79: BELLAWOOD | D79: 3/4" x 4" Select Red Oak, Clear Finish, Select | E79: 8.49 | F79: 5.69 | G79: /catalog/product.jsp?productId=1533&amp;categoryId=348&amp;sectionId=1&amp;subCategoryId=0
A80: Solid Hardwood | B80: Prefinished Bellawood | C80: BELLAWOOD | D80: 3/4" x 5" Natural Red Oak, Clear Finish, Natural | E80: 7.95 | F80: 4.99 | G80: /catalog/product.jsp?productId=1534&amp;categoryId=348&amp;sectionId=1&amp;subCategoryId=0
A81: Solid Hardwood | B81: Prefinished Bellawood | C81: BELLAWOOD | D81: 3/4" x 5" Select Red Oak, Clear Finish, Select | E81: 8.95 | F81: 5.79 | G81: /catalog/product.jsp?productId=1535&amp;categoryId=348&amp;sectionId=1&amp;subCategoryId=0
A82: Solid Hardwood | B82: Prefinished Bellawood | C82: BELLAWOOD | D82: 3/4" x 2-1/4" White Oak, Clear Finish, Natural | E82: 6.39 | F82: 4.29 | G82: /catalog/product.jsp?productId=1536&amp;categoryId=348&amp;sectionId=1&amp;subCategoryId=0
A83: Solid Hardwood | B83: Prefinished Bellawood | C83: BELLAWOOD | D83: 3/4" x 3-1/4" Natural White Oak Flooring, Clear Finish, Natural | E83: 7.49 | F83: 4.49 | G83: /catalog/product.jsp?productId=1538&amp;categoryId=348&amp;sectionId=1&amp;subCategoryId=0
A84: Solid Hardwood | B84: Prefinished Bellawood | C84: BELLAWOOD | D84: 3/4" x 5-1/4" Natural Australian Cypress, Clear Finish, Natural | E84: 8.99 | F84: 6.09 | G84: /catalog/product.jsp?productId=1542&amp;categoryId=348&amp;sectionId=1&amp;subCategoryId=0
A85: Solid Hardwood | B85: Prefinished Bellawood | C85: BELLAWOOD | D85: 3/4" x 2-1/4" Brazilian Cherry Lite, Clear Finish, Select | E85: 7.99 | F85: 5.79 | G85: /catalog/product.jsp?productId=1543&amp;categoryId=348&amp;sectionId=1&amp;subCategoryId=0
A86: Solid Hardwood | B86: Prefinished Bellawood | C86: BELLAWOOD | D86: 3/4" x 2-1/4" Brazilian Cherry, Clear Finish, Select | E86: 7.79 | F86: 5.39 | G86: /catalog/product.jsp?productId=1544&amp;categoryId=348&amp;sectionId=1&amp;subCategoryId=0
A87: Solid Hardwood | B87: Prefinished Bellawood | C87: BELLAWOOD | D87: 3/4" x 3 1/4" Brazilian Cherry Lite, Clear Finish, Select | E87: 8.95 | F87: 6.39 | G87: /catalog/product.jsp?productId=1545&amp;categoryId=348&amp;sectionId=1&amp;subCategoryId=0
A88: Solid Hardwood | B88: Prefinished Bellawood | C88: BELLAWOOD | D88: 3/4" x 3-1/4" Brazilian Cherry, Clear Finish, Select | E88: 8.49 | F88: 5.79 | G88: /catalog/product.jsp?productId=1548&amp;categoryId=348&amp;sectionId=1&amp;subCategoryId=0
A89: Solid Hardwood | B89: Prefinished Bellawood | C89: BELLAWOOD | D89: 3/4" x 2-1/4" Brazilian Mesquite, Clear Finish, Select | E89: 7.95 | F89: 5.19 | G89: /catalog/product.jsp?productId=1554&amp;categoryId=348&amp;sectionId=1&amp;subCategoryId=0
A90: Solid Hardwood | B90: Prefinished Bellawood | C90: BELLAWOOD | D90: 3/4" x 3-1/4" Brazilian Mesquite, Clear Finish, Select | E90: 8.99 | F90: 5.89 | G90: /catalog/product.jsp?productId=1556&amp;categoryId=348&amp;sectionId=1&amp;subCategoryId=0
A91: Solid Hardwood | B91: Prefinished Bellawood | C91: BELLAWOOD | D91: 3/4" x 3-1/4" Select Bolivian Rosewood, Clear Finish, Select | E91: 8.49 | F91: 6.39 | G91: /catalog/product.jsp?productId=1560&amp;categoryId=348&amp;sectionId=1&amp;subCategoryId=0
A92: Solid Hardwood | B92: Prefinished Bellawood | C92: BELLAWOOD | D92: 3/4" x 5" Select Bolivian Rosewood, Clear Finish, Select | E92: 8.69 | F92: 6.49 | G92: /catalog/product.jsp?productId=1562&amp;categoryId=348&amp;sectionId=1&amp;subCategoryId=0
A93: Solid Hardwood | B93: Prefinished Bellawood | C93: BELLAWOOD | D93: 3/4" x 2 1/4" Brazilian Walnut, Clear Finish, Select | E93: 8.69 | F93: 5.79 | G93: /catalog/product.jsp?productId=1565&amp;categoryId=348&amp;sectionId=1&amp;subCategoryId=0
A94: Solid Hardwood | B94: Prefinished Bellawood | C94: BELLAWOOD | D94: 3/4" x 3-1/4" Brazilian Walnut, Clear Finish, Select | E94: 8.79 | F94: 6.69 | G94: /catalog/product.jsp?productId=1567&amp;categoryId=348&amp;sectionId=1&amp;subCategoryId=0
A95: Solid Hardwood | B95: Prefinished Bellawood | C95: BELLAWOOD | D95: 3/4" x 5" Brazilian Walnut, Clear Finish, Select | E95: 9.49 | F95: 6.89 | G95: /catalog/product.jsp?productId=1568&amp;categoryId=348&amp;sectionId=1&amp;subCategoryId=0
A96: Solid Hardwood | B96: Prefinished Bellawood | C96: BELLAWOOD | D96: 3/4" x 2-1/4" Golden Teak, Clear Finish, Select | E96: 7.95 | F96: 5.89 | G96: /catalog/product.jsp?productId=1569&amp;categoryId=348&amp;sectionId=1&amp;subCategoryId=0
A97: Solid Hardwood | B97: Prefinished Bellawood | C97: BELLAWOOD | D97: 3/4" x 2-1/4" Brazilian Koa, Clear Finish, Select | E97: 7.95 | F97: 5.59 | G97: /catalog/product.jsp?productId=1572&amp;categoryId=348&amp;sectionId=1&amp;subCategoryId=0
A98: Solid Hardwood | B98: Prefinished Bellawood | C98: BELLAWOOD | D98: 3/4" x 3-1/4" Select Santos Mahogany, Clear Finish, Select | E98: 10.95 | F98: 7.39 | G98: /catalog/product.jsp?productId=1582&amp;categoryId=348&amp;sectionId=1&amp;subCategoryId=0
A99: Solid Hardwood | B99: Prefinished Bellawood | C99: BELLAWOOD | D99: 3/4" x 5" Santos Mahogany, Clear Finish, Select | E99: 11.95 | F99: 7.79 | G99: /catalog/product.jsp?productId=1584&amp;categoryId=348&amp;sectionId=1&amp;subCategoryId=0
A100: Solid Hardwood | B100: Prefinished Bellawood | C100: BELLAWOOD | D100: 3/4" x 2 1/4" American Walnut, Clear Finish, Natural | E100: 8.95 | F100: 6.59 | G100: /catalog/product.jsp?productId=2083&amp;categoryId=348&amp;sectionId=1&amp;subCategoryId=0
A101: Solid Hardwood | B101: Prefinished Bellawood | C101: BELLAWOOD | D101: 3/4" x 3-1/4" Brazilian Teak, Clear Finish, Select | E101: 8.49 | F101: 6.49 | G101: /catalog/product.jsp?productId=2963&amp;categoryId=348&amp;sectionId=1&amp;subCategoryId=0
A102: Solid Hardwood | B102: Prefinished Bellawood | C102: BELLAWOOD | D102: 3/4" x 5" Brazilian Teak, Clear Finish, Select | E102: 8.95 | F102: 6.59 | G102: /catalog/product.jsp?productId=2965&amp;categoryId=348&amp;sectionId=1&amp;subCategoryId=0
A103: Solid Hardwood | B103: Prefinished Bellawood | C103: BELLAWOOD | D103: 3/4" x 4" Natural Birch, Clear Finish, Natural | E103: 7.49 | F103: 4.79 | G103: /catalog/product.jsp?productId=2996&amp;categoryId=348&amp;sectionId=1&amp;subCategoryId=0
A104: Solid Hardwood | B104: Prefinished Bellawood | C104: BELLAWOOD | D104: 3/4" x 3-1/4" Brazilian Redwood, Clear Finish, Select | E104: 8.39 | F104: 6.09 | G104: /catalog/product.jsp?productId=3200&amp;categoryId=348&amp;sectionId=1&amp;subCategoryId=0
A105: Solid Hardwood | B105: Prefinished Domestic | C105: BELLAWOOD | D105: 3/8" x 3" Natural Maple, Clear Finish, Natural | E105: 7.29 | F105: 4.19 | G105: /catalog/product.jsp?productId=1515&amp;categoryId=5&amp;sectionId=1&amp;subCategoryId=0
A106: Solid Hardwood | B106: Prefinished Domestic | C106: BELLAWOOD | D106: 3/8" x 3" Select Maple, Clear Finish, Select | E106: 7.49 | F106: 4.39 | G106: /catalog/product.jsp?productId=1518&amp;categoryId=5&amp;sectionId=1&amp;subCategoryId=0
A107: Solid Hardwood | B107: Prefinished Domestic | C107: BELLAWOOD | D107: 3/8" x 3" Natural Red Oak, Clear Finish, Natural | E107: 7.29 | F107: 4.29 | G107: /catalog/product.jsp?productId=1527&amp;categoryId=5&amp;sectionId=1&amp;subCategoryId=0
A108: Solid Hardwood | B108: Prefinished Domestic | C108: BELLAWOOD | D108: 3/8" x 3" Select Red Oak, Clear Finish, Select | E108: 7.79 | F108: 4.49 | G108: /catalog/product.jsp?productId=1530&amp;categoryId=5&amp;sectionId=1&amp;subCategoryId=0
A109: Solid Hardwood | B109: Prefinished Domestic | C109: BELLAWOOD | D109: 3/4" x 2-1/4" Natural Ash, Clear Finish, Natural | E109: 4.79 | F109: 3.99 | G109: /catalog/product.jsp?productId=1477&amp;categoryId=5&amp;sectionId=1&amp;subCategoryId=0
A110: Solid Hardwood | B110: Prefinished Domestic | C110: BELLAWOOD | D110: 3/4" x 2-1/4" Select Ash, Clear Finish, Select | E110: 7.45 | F110: 4.29 | G110: /catalog/product.jsp?productId=1478&amp;categoryId=5&amp;sectionId=1&amp;subCategoryId=0
A111: Solid Hardwood | B111: Prefinished Domestic | C111: BELLAWOOD | D111: 3/4" x 3-1/4" Natural Ash, Clear Finish, Natural | E111: 5.99 | F111: 4.29 | G111: /catalog/product.jsp?productId=1479&amp;categoryId=5&amp;sectionId=1&amp;subCategoryId=0
A112: Solid Hardwood | B112: Prefinished Domestic | C112: BELLAWOOD | D112: 3/4" x 3-1/4" Select Ash, Clear Finish, Select | E112: 7.95 | F112: 4.99 | G112: /catalog/product.jsp?productId=1480&amp;categoryId=5&amp;sectionId=1&amp;subCategoryId=0
A113: Solid Hardwood | B113: Prefinished Domestic | C113: BELLAWOOD | D113: 3/4" x 4" Natural Ash, Clear Finish, Natural | E113: 7.99 | F113: 4.49 | G113: /catalog/product.jsp?productId=1481&amp;categoryId=5&amp;sectionId=1&amp;subCategoryId=0
A114: Solid Hardwood | B114: Prefinished Domestic | C114: BELLAWOOD | D114: 3/4" x 4" Select Ash, Clear Finish, Select | E114: 8.45 | F114: 5.29 | G114: /catalog/product.jsp?productId=1482&amp;categoryId=5&amp;sectionId=1&amp;subCategoryId=0
A115: Solid Hardwood | B115: Prefinished Domestic | C115: BELLAWOOD | D115: 3/4" x 5" Natural Ash, Clear Finish, Natural | E115: 7.95 | F115: 4.69 | G115: /catalog/product.jsp?productId=1483&amp;categoryId=5&amp;sectionId=1&amp;subCategoryId=0
A116: Solid Hardwood | B116: Prefinished Domestic | C116: BELLAWOOD | D116: 3/4" x 5" Select Ash, Clear Finish, Select | E116: 7.95 | F116: 5.59 | G116: /catalog/product.jsp?productId=1484&amp;categoryId=5&amp;sectionId=1&amp;subCategoryId=0
A117: Solid Hardwood | B117: Prefinished Domestic | C117: BELLAWOOD | D117: 3/4" x 3" Natural American Walnut, Clear Finish, Natural | E117: 9.95 | F117: 6.99 | G117: /catalog/product.jsp?productId=1485&amp;categoryId=5&amp;sectionId=1&amp;subCategoryId=0
A118: Solid Hardwood | B118: Prefinished Domestic | C118: BELLAWOOD | D118: 3/4" x 4" American Walnut, Clear Finish, Natural | E118: 9.95 | F118: 6.99 | G118: /catalog/product.jsp?productId=1486&amp;categoryId=5&amp;sectionId=1&amp;subCategoryId=0
A119: Solid Hardwood | B119: Prefinished Domestic | C119: BELLAWOOD | D119: 3/4" x 5" Natural American Walnut, Clear Finish, Natural | E119: 10.95 | F119: 7.49 | G119: /catalog/product.jsp?productId=1487&amp;categoryId=5&amp;sectionId=1&amp;subCategoryId=0
A120: Solid Hardwood | B120: Prefinished Domestic | C120: BELLAWOOD | D120: 3/4" x 2-1/4" Select Birdseye Maple, Clear Finish, Select | E120: 10.95 | F120: 7.29 | G120: /catalog/product.jsp?productId=1489&amp;categoryId=5&amp;sectionId=1&amp;subCategoryId=0
A121: Solid Hardwood | B121: Prefinished Domestic | C121: BELLAWOOD | D121: 3/4" x 3-1/4" Select Birdseye Maple, Clear Finish, Select | E121: 10.95 | F121: 7.49 | G121: /catalog/product.jsp?productId=1491&amp;categoryId=5&amp;sectionId=1&amp;subCategoryId=0
A122: Solid Hardwood | B122: Prefinished Domestic | C122: BELLAWOOD | D122: 3/4" x 2-1/4" Natural Beech, Clear Finish, Natural | E122: 7.29 | F122: 4.69 | G122: /catalog/product.jsp?productId=1492&amp;categoryId=5&amp;sectionId=1&amp;subCategoryId=0
A123: Solid Hardwood | B123: Prefinished Domestic | C123: BELLAWOOD | D123: 3/4" x 2-1/4" Select Beech, Clear Finish, Select | E123: 7.95 | F123: 4.99 | G123: /catalog/product.jsp?productId=1493&amp;categoryId=5&amp;sectionId=1&amp;subCategoryId=0
A124: Solid Hardwood | B124: Prefinished Domestic | C124: BELLAWOOD | D124: 3/4" x 3-1/4" Natural Beech, Clear Finish, Natural | E124: 7.39 | F124: 4.69 | G124: /catalog/product.jsp?productId=1494&amp;categoryId=5&amp;sectionId=1&amp;subCategoryId=0
A125: Solid Hardwood | B125: Prefinished Domestic | C125: BELLAWOOD | D125: 3/4" x 3-1/4" Select Beech, Clear Finish, Select | E125: 8.49 | F125: 5.49 | G125: /catalog/product.jsp?productId=1495&amp;categoryId=5&amp;sectionId=1&amp;subCategoryId=0
A126: Solid Hardwood | B126: Prefinished Domestic | C126: BELLAWOOD | D126: 3/4" x 2-1/4" Natural Birch, Clear Finish, Natural | E126: 7.49 | F126: 4.29 | G126: /catalog/product.jsp?productId=1496&amp;categoryId=5&amp;sectionId=1&amp;subCategoryId=0
A127: Solid Hardwood | B127: Prefinished Domestic | C127: BELLAWOOD | D127: 3/4" x 2-1/4" Select Birch, Clear Finish, Select | E127: 7.39 | F127: 4.69 | G127: /catalog/product.jsp?productId=1497&amp;categoryId=5&amp;sectionId=1&amp;subCategoryId=0
A128: Solid Hardwood | B128: Prefinished Domestic | C128: BELLAWOOD | D128: 3/4" x 3-1/4" Natural Birch, Clear Finish, Natural | E128: 7.45 | F128: 4.79 | G128: /catalog/product.jsp?productId=1498&amp;categoryId=5&amp;sectionId=1&amp;subCategoryId=0
A129: Solid Hardwood | B129: Prefinished Domestic | C129: BELLAWOOD | D129: 3/4" x 3-1/4" Select Birch, Clear Finish, Select | E129: 7.49 | F129: 5.49 | G129: /catalog/product.jsp?productId=1499&amp;categoryId=5&amp;sectionId=1&amp;subCategoryId=0
A130: Solid Hardwood | B130: Prefinished Domestic | C130: BELLAWOOD | D130: 3/4" x 2-1/4" Natural American Cherry, Clear Finish, Natural | E130: 7.95 | F130: 4.39 | G130: /catalog/product.jsp?productId=1500&amp;categoryId=5&amp;sectionId=1&amp;subCategoryId=0
A131: Solid Hardwood | B131: Prefinished Domestic | C131: BELLAWOOD | D131: 3/4" x 2-1/4" Select American Cherry, Clear Finish, Select | E131: 7.95 | F131: 4.79 | G131: /catalog/product.jsp?productId=1501&amp;categoryId=5&amp;sectionId=1&amp;subCategoryId=0
A132: Solid Hardwood | B132: Prefinished Domestic | C132: BELLAWOOD | D132: 3/4" x 3-1/4" Natural American Cherry, Clear Finish, Natural | E132: 7.95 | F132: 4.59 | G132: /catalog/product.jsp?productId=1502&amp;categoryId=5&amp;sectionId=1&amp;subCategoryId=0
A133: Solid Hardwood | B133: Prefinished Domestic | C133: BELLAWOOD | D133: 3/4" x 3-1/4" Select American Cherry, Clear Finish, Select | E133: 8.95 | F133: 5.09 | G133: /catalog/product.jsp?productId=1503&amp;categoryId=5&amp;sectionId=1&amp;subCategoryId=0
A134: Solid Hardwood | B134: Prefinished Domestic | C134: BELLAWOOD | D134: 3/4" x 4" Natural American Cherry, Clear Finish, Natural | E134: 8.49 | F134: 4.79 | G134: /catalog/product.jsp?productId=1504&amp;categoryId=5&amp;sectionId=1&amp;subCategoryId=0
A135: Solid Hardwood | B135: Prefinished Domestic | C135: BELLAWOOD | D135: 3/4" x 4" Select American Cherry, Clear Finish, Select | E135: 9.95 | F135: 5.19 | G135: /catalog/product.jsp?productId=1505&amp;categoryId=5&amp;sectionId=1&amp;subCategoryId=0
A136: Solid Hardwood | B136: Prefinished Domestic | C136: BELLAWOOD | D136: 3/4" x 5" Natural American Cherry, Clear Finish, Natural | E136: 8.95 | F136: 5.19 | G136: /catalog/product.jsp?productId=1506&amp;categoryId=5&amp;sectionId=1&amp;subCategoryId=0
A137: Solid Hardwood | B137: Prefinished Domestic | C137: BELLAWOOD | D137: 3/4" x 5" Select American Cherry, Clear Finish, Select | E137: 8.95 | F137: 5.59 | G137: /catalog/product.jsp?productId=1507&amp;categoryId=5&amp;sectionId=1&amp;subCategoryId=0
A138: Solid Hardwood | B138: Prefinished Domestic | C138: BELLAWOOD | D138: 3/4" x 2-1/4" Natural Hickory, Clear Finish, Natural | E138: 7.95 | F138: 4.69 | G138: /catalog/product.jsp?productId=1508&amp;categoryId=5&amp;sectionId=1&amp;subCategoryId=0
A139: Solid Hardwood | B139: Prefinished Domestic | C139: BELLAWOOD | D139: 3/4" x 3" Natural Hickory, Clear Finish, Natural | E139: 7.49 | F139: 5.09 | G139: /catalog/product.jsp?productId=1509&amp;categoryId=5&amp;sectionId=1&amp;subCategoryId=0
A140: Solid Hardwood | B140: Prefinished Domestic | C140: BELLAWOOD | D140: 3/4" x 4" Natural Hickory, Clear Finish, Natural | E140: 8.49 | F140: 5.29 | G140: /catalog/product.jsp?productId=1510&amp;categoryId=5&amp;sectionId=1&amp;subCategoryId=0
A141: Solid Hardwood | B141: Prefinished Domestic | C141: BELLAWOOD | D141: 3/4" x 5" Natural Hickory, Clear Finish, Natural | E141: 8.95 | F141: 5.49 | G141: /catalog/product.jsp?productId=1511&amp;categoryId=5&amp;sectionId=1&amp;subCategoryId=0
A142: Solid Hardwood | B142: Prefinished Domestic | C142: BELLAWOOD | D142: 3/4" x 2-1/4" Natural Maple, Clear Finish, Natural | E142: 7.49 | F142: 4.29 | G142: /catalog/product.jsp?productId=1512&amp;categoryId=5&amp;sectionId=1&amp;subCategoryId=0
A143: Solid Hardwood | B143: Prefinished Domestic | C143: BELLAWOOD | D143: 3/4" x 2-1/4" Maple, Clear Finish, Rustic | E143: 6.95 | F143: 3.79 | G143: /catalog/product.jsp?productId=1513&amp;categoryId=5&amp;sectionId=1&amp;subCategoryId=0
A144: Solid Hardwood | B144: Prefinished Domestic | C144: BELLAWOOD | D144: 3/4" x 2-1/4" Maple, Clear Finish, Select | E144: 8.49 | F144: 4.69 | G144: /catalog/product.jsp?productId=1514&amp;categoryId=5&amp;sectionId=1&amp;subCategoryId=0
A145: Solid Hardwood | B145: Prefinished Domestic | C145: BELLAWOOD | D145: 3/4" x 3-1/4" Natural Maple, Clear Finish, Natural | E145: 7.95 | F145: 4.79 | G145: /catalog/product.jsp?productId=1516&amp;categoryId=5&amp;sectionId=1&amp;subCategoryId=0
A146: Solid Hardwood | B146: Prefinished Domestic | C146: BELLAWOOD | D146: 3/4" x 3-1/4" Rustic Maple, Clear Finish, Rustic | E146: 7.49 | F146: 4.39 | G146: /catalog/product.jsp?productId=1517&amp;categoryId=5&amp;sectionId=1&amp;subCategoryId=0
A147: Solid Hardwood | B147: Prefinished Domestic | C147: BELLAWOOD | D147: 3/4" x 3-1/4" Select Maple, Clear Finish, Select | E147: 8.95 | F147: 5.19 | G147: /catalog/product.jsp?productId=1519&amp;categoryId=5&amp;sectionId=1&amp;subCategoryId=0
A148: Solid Hardwood | B148: Prefinished Domestic | C148: BELLAWOOD | D148: 3/4" x 4" Natural Maple, Clear Finish, Natural | E148: 7.95 | F148: 5.29 | G148: /catalog/product.jsp?productId=1520&amp;categoryId=5&amp;sectionId=1&amp;subCategoryId=0
A149: Solid Hardwood | B149: Prefinished Domestic | C149: BELLAWOOD | D149: 3/4" x 4" Select Maple, Clear Finish, Select | E149: 9.49 | F149: 5.49 | G149: /catalog/product.jsp?productId=1521&amp;categoryId=5&amp;sectionId=1&amp;subCategoryId=0
A150: Solid Hardwood | B150: Prefinished Domestic | C150: BELLAWOOD | D150: 3/4" x 5" Natural Maple, Clear Finish, Natural | E150: 8.49 | F150: 5.69 | G150: /catalog/product.jsp?productId=1522&amp;categoryId=5&amp;sectionId=1&amp;subCategoryId=0
A151: Solid Hardwood | B151: Prefinished Domestic | C151: BELLAWOOD | D151: 3/4" x 5" Select Maple, Clear Finish, Select | E151: 10.49 | F151: 5.89 | G151: /catalog/product.jsp?productId=1523&amp;categoryId=5&amp;sectionId=1&amp;subCategoryId=0
A152: Solid Hardwood | B152: Prefinished Domestic | C152: BELLAWOOD | D152: 3/4" x 2-1/4" Natural Red Oak, Clear Finish, Natural | E152: 6.59 | F152: 4.49 | G152: /catalog/product.jsp?productId=1524&amp;categoryId=5&amp;sectionId=1&amp;subCategoryId=0
A153: Solid Hardwood | B153: Prefinished Domestic | C153: BELLAWOOD | D153: 3/4" x 2-1/4" Rustic Red Oak, Clear Finish, Rustic | E153: 6.95 | F153: 3.79 | G153: /catalog/product.jsp?productId=1525&amp;categoryId=5&amp;sectionId=1&amp;subCategoryId=0
A154: Solid Hardwood | B154: Prefinished Domestic | C154: BELLAWOOD | D154: 3/4" x 2-1/4" Select Red Oak, Clear Finish, Select | E154: 6.99 | F154: 4.69 | G154: /catalog/product.jsp?productId=1526&amp;categoryId=5&amp;sectionId=1&amp;subCategoryId=0
A155: Solid Hardwood | B155: Prefinished Domestic | C155: BELLAWOOD | D155: 3/4" x 3-1/4" Natural Red Oak, Clear Finish, Natural | E155: 7.59 | F155: 4.79 | G155: /catalog/product.jsp?productId=1528&amp;categoryId=5&amp;sectionId=1&amp;subCategoryId=0
A156: Solid Hardwood | B156: Prefinished Domestic | C156: BELLAWOOD | D156: 3/4" x 3-1/4" Rustic Red Oak, Clear Finish, Rustic | E156: 7.49 | F156: 4.69 | G156: /catalog/product.jsp?productId=1529&amp;categoryId=5&amp;sectionId=1&amp;subCategoryId=0
A157: Solid Hardwood | B157: Prefinished Domestic | C157: BELLAWOOD | D157: 3/4" x 3-1/4" Select Red Oak, Clear Finish, Select | E157: 8.49 | F157: 5.49 | G157: /catalog/product.jsp?productId=1531&amp;categoryId=5&amp;sectionId=1&amp;subCategoryId=0
A158: Solid Hardwood | B158: Prefinished Domestic | C158: BELLAWOOD | D158: 3/4" x 4" Natural Red Oak, Clear Finish, Natural | E158: 7.95 | F158: 4.89 | G158: /catalog/product.jsp?productId=1532&amp;categoryId=5&amp;sectionId=1&amp;subCategoryId=0
A159: Solid Hardwood | B159: Prefinished Domestic | C159: BELLAWOOD | D159: 3/4" x 4" Select Red Oak, Clear Finish, Select | E159: 8.49 | F159: 5.69 | G159: /catalog/product.jsp?productId=1533&amp;categoryId=5&amp;sectionId=1&amp;subCategoryId=0
A160: Solid Hardwood | B160: Prefinished Domestic | C160: BELLAWOOD | D160: 3/4" x 5" Natural Red Oak, Clear Finish, Natural | E160: 7.95 | F160: 4.99 | G160: /catalog/product.jsp?productId=1534&amp;categoryId=5&amp;sectionId=1&amp;subCategoryId=0
A161: Solid Hardwood | B161: Prefinished Domestic | C161: BELLAWOOD | D161: 3/4" x 5" Select Red Oak, Clear Finish, Select | E161: 8.95 | F161: 5.79 | G161: /catalog/product.jsp?productId=1535&amp;categoryId=5&amp;sectionId=1&amp;subCategoryId=0
A162: Solid Hardwood | B162: Prefinished Domestic | C162: BELLAWOOD | D162: 3/4" x 2-1/4" White Oak, Clear Finish, Natural | E162: 6.39 | F162: 4.29 | G162: /catalog/product.jsp?productId=1536&amp;categoryId=5&amp;sectionId=1&amp;subCategoryId=0
A163: Solid Hardwood | B163: Prefinished Domestic | C163: BELLAWOOD | D163: 3/4" x 2-1/4" White Oak, Clear Finish, Select | E163: 6.79 | F163: 4.79 | G163: /catalog/product.jsp?productId=1537&amp;categoryId=5&amp;sectionId=1&amp;subCategoryId=0
A164: Solid Hardwood | B164: Prefinished Domestic | C164: BELLAWOOD | D164: 3/4" x 3-1/4" Natural White Oak Flooring, Clear Finish, Natural | E164: 7.49 | F164: 4.49 | G164: /catalog/product.jsp?productId=1538&amp;categoryId=5&amp;sectionId=1&amp;subCategoryId=0
A165: Solid Hardwood | B165: Prefinished Domestic | C165: BELLAWOOD | D165: 3/4" x 3-1/4" Select White Oak, Clear Finish, Select | E165: 7.95 | F165: 4.99 | G165: /catalog/product.jsp?productId=1539&amp;categoryId=5&amp;sectionId=1&amp;subCategoryId=0
A166: Solid Hardwood | B166: Prefinished Domestic | C166: Clover Lea | D166: 3/4" x 5" Savannah Gold Heart Pine, Clear Finish, Natural | E166: 5.59 | F166: 3.79 | G166: /catalog/product.jsp?productId=1594&amp;categoryId=5&amp;sectionId=1&amp;subCategoryId=0
A167: Solid Hardwood | B167: Prefinished Domestic | C167: Clover Lea | D167: 3/4" x 5" Natural Heart Pine, Clear Finish, Natural | E167: 5.95 | F167: 3.79 | G167: /catalog/product.jsp?productId=1603&amp;categoryId=5&amp;sectionId=1&amp;subCategoryId=0
A168: Solid Hardwood | B168: Prefinished Domestic | C168: Builder's Pride | D168: 3/4" x 2 1/4" Red Oak, Clear Finish, Natural | E168: 5.89 | F168: 3.49 | G168: /catalog/product.jsp?productId=1612&amp;categoryId=5&amp;sectionId=1&amp;subCategoryId=0
A169: Solid Hardwood | B169: Prefinished Domestic | C169: Builder's Pride | D169: 3/4" x 2 1/4" Red Oak, Clear Finish, Select | E169: 6.19 | F169: 3.79 | G169: /catalog/product.jsp?productId=1613&amp;categoryId=5&amp;sectionId=1&amp;subCategoryId=0
A170: Solid Hardwood | B170: Prefinished Domestic | C170: Builder's Pride | D170: 3/4" x 4" Red Oak, Clear Finish, Natural | E170: 6.19 | F170: 4.09 | G170: /catalog/product.jsp?productId=1616&amp;categoryId=5&amp;sectionId=1&amp;subCategoryId=0
A171: Solid Hardwood | B171: Prefinished Domestic | C171: Builder's Pride | D171: 3/4" x 4" Red Oak, Clear Finish, Select | E171: 6.65 | F171: 4.19 | G171: /catalog/product.jsp?productId=1617&amp;categoryId=5&amp;sectionId=1&amp;subCategoryId=0
A172: Solid Hardwood | B172: Prefinished Domestic | C172: BELLAWOOD | D172: 3/4" x 2 1/4" American Walnut, Clear Finish, Natural | E172: 8.95 | F172: 6.59 | G172: /catalog/product.jsp?productId=2083&amp;categoryId=5&amp;sectionId=1&amp;subCategoryId=0
A173: Solid Hardwood | B173: Prefinished Domestic | C173: BELLAWOOD | D173: 3/4" x 4" Natural Birch, Clear Finish, Natural | E173: 7.49 | F173: 4.79 | G173: /catalog/product.jsp?productId=2996&amp;categoryId=5&amp;sectionId=1&amp;subCategoryId=0
A174: Solid Hardwood | B174: Prefinished Domestic | C174: BELLAWOOD | D174: 3/4" x 4" Select Birch, Clear Finish, Select | E174: 8.49 | F174: 5.49 | G174: /catalog/product.jsp?productId=2998&amp;categoryId=5&amp;sectionId=1&amp;subCategoryId=0
A175: Solid Hardwood | B175: Prefinished Domestic | C175: Clover Lea | D175: 3/4" x 5" Charleston Chestnut Heart Pine, Stained Finish, Natural | E175: 4.95 | F175: 3.79 | G175: /catalog/product.jsp?productId=3006&amp;categoryId=5&amp;sectionId=1&amp;subCategoryId=0
A176: Solid Hardwood | B176: Prefinished Domestic | C176: Ty Pennington Hardwood | D176: 3/4" x 5" Eleuthera Natural Ash, Stained Finish, Natural | E176: 8.95 | F176: 5.49 | G176: /catalog/product.jsp?productId=3231&amp;categoryId=5&amp;sectionId=1&amp;subCategoryId=0
A177: Solid Hardwood | B177: Prefinished Domestic | C177: Ty Pennington Hardwood | D177: 3/4" x 5" Natural Mauna Loa Ash, Stained Finish, Natural | E177: 8.95 | F177: 5.49 | G177: /catalog/product.jsp?productId=3232&amp;categoryId=5&amp;sectionId=1&amp;subCategoryId=0
A178: Solid Hardwood | B178: Prefinished Domestic | C178: Ty Pennington Hardwood | D178: 3/4"x 5" Natural Sunset Ash, Stained Finish, Natural | E178: 8.95 | F178: 5.49 | G178: /catalog/product.jsp?productId=3233&amp;categoryId=5&amp;sectionId=1&amp;subCategoryId=0
A179: Solid Hardwood | B179: Prefinished Domestic | C179: Ty Pennington Hardwood | D179: 3/4" x 2-1/4" Birdseye Maple, Clear Finish, Natural | E179: 8.95 | F179: 5.49 | G179: /catalog/product.jsp?productId=3237&amp;categoryId=5&amp;sectionId=1&amp;subCategoryId=0
A180: Solid Hardwood | B180: Prefinished Domestic | C180: Ty Pennington Hardwood | D180: 3/4" x 3-1/4" Birdseye Maple, Clear Finish, Natural | E180: 9.95 | F180: 6.49 | G180: /catalog/product.jsp?productId=3238&amp;categoryId=5&amp;sectionId=1&amp;subCategoryId=0
A181: Solid Hardwood | B181: Prefinished Domestic | C181: BELLAWOOD | D181: 3/4" x 5" Rustic Red Oak, Clear Finish, Rustic | E181: 8.49 | F181: 4.59 | G181: /catalog/product.jsp?productId=5849&amp;categoryId=5&amp;sectionId=1&amp;subCategoryId=0
A182: Solid Hardwood | B182: Prefinished Domestic | C182: BELLAWOOD | D182: 3/4" x 6" Rustic Red Oak, Clear Finish, Rustic | E182: 8.99 | F182: 5.99 | G182: /catalog/product.jsp?productId=6166&amp;categoryId=5&amp;sectionId=1&amp;subCategoryId=0
A183: Solid Hardwood | B183: Prefinished Domestic | C183: Durawood | D183: 3/4" x 3-1/4" Red Oak, Clear Finish, Natural | E183: 6.35 | F183: 3.79 | G183: /catalog/product.jsp?productId=6831&amp;categoryId=5&amp;sectionId=1&amp;subCategoryId=0
A184: Solid Hardwood | B184: Prefinished Domestic | C184: Durawood | D184: 3/4" x 3-1/4" Red Oak, Clear Finish, Select | E184: 6.65 | F184: 4.29 | G184: /catalog/product.jsp?productId=6832&amp;categoryId=5&amp;sectionId=1&amp;subCategoryId=0
A185: Solid Hardwood | B185: Prefinished Domestic | C185: Builder's Pride | D185: 3/4" X 4-1/4" Select Maple Flooring, Clear Finish, Select | E185: 7.09 | F185: 4.09 | G185: /catalog/product.jsp?productId=6925&amp;categoryId=5&amp;sectionId=1&amp;subCategoryId=0
A186: Solid Hardwood | B186: Prefinished Domestic | C186: Builder's Pride | D186: 3/4" x 3-1/4" Hickory, Clear Finish, Natural | E186: 7.29 | F186: 3.99 | G186: /catalog/product.jsp?productId=7599&amp;categoryId=5&amp;sectionId=1&amp;subCategoryId=0
A187: Solid Hardwood | B187: Prefinished Exotic | C187: BELLAWOOD | D187: 3/4" x 3-1/4" Natural Australian Cypress, Clear Finish, Natural | E187: 8.69 | F187: 4.69 | G187: /catalog/product.jsp?productId=1541&amp;categoryId=41&amp;sectionId=1&amp;subCategoryId=0
A188: Solid Hardwood | B188: Prefinished Exotic | C188: BELLAWOOD | D188: 3/8" x 3" Brazilian Cherry, Clear Finish, Select | E188: 7.29 | F188: 4.89 | G188: /catalog/product.jsp?productId=1547&amp;categoryId=41&amp;sectionId=1&amp;subCategoryId=0
A189: Solid Hardwood | B189: Prefinished Exotic | C189: BELLAWOOD | D189: 3/4" x 5" Brazilian Cherry, Clear Finish, Select | E189: 8.99 | F189: 5.89 | G189: /catalog/product.jsp?productId=1550&amp;categoryId=41&amp;sectionId=1&amp;subCategoryId=0
A190: Solid Hardwood | B190: Prefinished Exotic | C190: BELLAWOOD | D190: 3/4" x 3-1/4" Select Golden Teak, Clear Finish, Select | E190: 7.59 | F190: 6.19 | G190: /catalog/product.jsp?productId=1571&amp;categoryId=41&amp;sectionId=1&amp;subCategoryId=0
A191: Solid Hardwood | B191: Prefinished Exotic | C191: BELLAWOOD | D191: 3/8" x 3" Select Brazilian Koa, Clear Finish, Select | E191: 7.29 | F191: 5.09 | G191: /catalog/product.jsp?productId=1573&amp;categoryId=41&amp;sectionId=1&amp;subCategoryId=0
A192: Solid Hardwood | B192: Prefinished Exotic | C192: BELLAWOOD | D192: 3/4" x 3-1/4" Brazilian Koa, Clear Finish, Select | E192: 8.45 | F192: 6.19 | G192: /catalog/product.jsp?productId=1574&amp;categoryId=41&amp;sectionId=1&amp;subCategoryId=0
A193: Solid Hardwood | B193: Prefinished Exotic | C193: BELLAWOOD | D193: 3/4" x 5" Brazilian Koa Flooring, Clear Finish, Select | E193: 9.95 | F193: 6.39 | G193: /catalog/product.jsp?productId=1575&amp;categoryId=41&amp;sectionId=1&amp;subCategoryId=0
A194: Solid Hardwood | B194: Prefinished Exotic | C194: BELLAWOOD | D194: 5/16" x 2-1/4" Select Brazilian Koa, Clear Finish, Select | E194: 6.45 | F194: 4.09 | G194: /catalog/product.jsp?productId=3198&amp;categoryId=41&amp;sectionId=1&amp;subCategoryId=0
A195: Solid Hardwood | B195: Prefinished Exotic | C195: BELLAWOOD | D195: 5/16" x 2-1/4" Select Brazilian Mesquite, Clear Finish, Select | E195: 6.45 | F195: 3.99 | G195: /catalog/product.jsp?productId=3457&amp;categoryId=41&amp;sectionId=1&amp;subCategoryId=0
A196: Solid Hardwood | B196: Prefinished Exotic | C196: BELLAWOOD | D196: 5/16" x 2-1/4" Select Brazilian Cherry, Clear Finish, Select | E196: 6.45 | F196: 3.89 | G196: /catalog/product.jsp?productId=2961&amp;categoryId=41&amp;sectionId=1&amp;subCategoryId=0
A197: Solid Hardwood | B197: Prefinished Exotic | C197: BELLAWOOD | D197: 5/16" x 2-1/4" Select Brazilian Walnut, Clear Finish, Select | E197: 6.45 | F197: 4.19 | G197: /catalog/product.jsp?productId=3067&amp;categoryId=41&amp;sectionId=1&amp;subCategoryId=0
A198: Solid Hardwood | B198: Prefinished Exotic | C198: BELLAWOOD | D198: 5/16" x 2-1/4" Select Golden Teak, Clear Finish, Select | E198: 6.45 | F198: 4.09 | G198: /catalog/product.jsp?productId=3216&amp;categoryId=41&amp;sectionId=1&amp;subCategoryId=0
A199: Solid Hardwood | B199: Prefinished Exotic | C199: BELLAWOOD | D199: 5/16" x 2-1/4" Select Brazilian Teak, Clear Finish, Select | E199: 5.99 | F199: 2.99 | G199: /catalog/product.jsp?productId=3519&amp;categoryId=41&amp;sectionId=1&amp;subCategoryId=0
A200: Solid Hardwood | B200: Prefinished Exotic | C200: BELLAWOOD | D200: 5/16" x 2-1/4" Select Brazilian Redwood, Clear Finish, Select | E200: 6.45 | F200: 4.19 | G200: /catalog/product.jsp?productId=4337&amp;categoryId=41&amp;sectionId=1&amp;subCategoryId=0
... 284 more rows

Sheet QuoteUnFin
A1: Item Code | B1: Description | C1: Order-qty | D1: Unit | E1: Price | F1: Amount | G1: Tax | H1: Cost / sqft | I1: Notes
K2: 1000
A3: ffoncz5-satin | B3: Polo Plaz 5Gal Supreme Finish Satin | C3: 1 | D3: ea | E3: 129 | F3: 129 | G3: OTT | H3: =129/2000 -> 0.0645 | I3: 1 Gal = 400 sqft | J3: =K2/2000 -> 0.5 | K3: =H3*$K$2 -> 64.5
A4: SS750018112 | B4: BonaKemi DriFast 1Gal Stain Antique Brown | C4: 1 | D4: ea | E4: 30.04 | F4: 30.04 | G4: OTT | H4: =F4/500 -> 0.06008 | I4: 1 Gal = 500 sqft | J4: =K2/500 -> 2 | K4: =H4*$K$2 -> 60.08
A5: plastic61 | B5: Clear Film 6 mil 10 x 100 | C5: 1 | D5: ea | E5: 33.5 | F5: 33.5 | G5: OTT | H5: =F5/1000 -> 0.0335 | I5: 1000 sqft | J5: =K2/1000 -> 1 | K5: =H5*$K$2 -> 33.5
A6: felt14 | B6: 15# Roofing Felt - G.A.P. Label | C6: 1 | D6: ea | E6: 14.5 | F6: 14.5 | G6: OTT | H6: =F6/400 -> 0.03625 | I6: 400 sqft | K6: =H6*$K$2 -> 36.25
A7: 7512PG-10.3M | B7: Staple - 1 1/2" Spotnails | C7: 1 | D7: ea | E7: 48.88 | F7: 48.88 | G7: OTT | H7: =F7/1000 -> 0.04888 | I7: 1 box = 1000 sqft | K7: 48.88
A8: mynaae125 | B8: 1 1/4 Pins - Aerosmith | C8: 1 | D8: ea | E8: 65 | F8: 65 | G8: OTT | H8: =F8/1000 -> 0.065 | I8: 1 box = 1000 sqft | K8: 65
A9: plywood5/8 | B9: 5/8" Plywood - 19/32 PRS 40/20 Ext 1 SYP | C9: 1 | D9: ea | E9: 2.23 | F9: 2.23 | G9: OTT | H9: =F9/32 -> 0.0696875 | I9: 1 Sheet = 32 sqft | K9: 69.6875
A10: 16005 | B10: 7 7/8 x 29 1/2 Norton Belt 36 Grit Silicon Carbide | C10: 1 | D10: ea | E10: 15.25 | F10: 15.25 | G10: OTT | H10: =E10 -> 15.25 | I10: 1 per job | K10: =H10 -> 15.25
A11: 16001 | B11: 7 7/8 x 29 1/2 Norton Belt 80 Grit Silicon Carbide | C11: 1 | D11: ea | E11: 6.37 | F11: 6.37 | G11: OTT | H11: =E11 -> 6.37 | I11: 1 per job | K11: =H11 -> 6.37
A12: 20518 | B12: 16in Norton Screen 80 Grit | C12: 1 | D12: ea | E12: 5.25 | F12: 5.25 | G12: OTT | H12: =E12 -> 5.25 | I12: 1 per job | K12: =H12 -> 5.25
A13: 35007 | B13: 7 x 7/8 Norton Edger Disc Silicon Carbide 80 Grit | C13: 1 | D13: ea | E13: 0.5 | F13: 0.5 | G13: OTT | H13: =F13/100 -> 0.005 | I13: 10 per 1000 sqft | K13: 5
A14: 35076 | B14: 7 x 7/8 Norton Edger Disc Silicon Carbide 100 Grit | C14: 1 | D14: ea | E14: 0.45 | F14: 0.45 | G14: OTT | H14: =F14/100 -> 0.0045 | I14: 10 per 1000 sqft | K14: 4.5
A16: 2251CROMH | B16: 2 1/4" Red Oak #1 Common Missouri Hardwoods Nested | C16: 1 | D16: sqft | E16: 1.95 | F16: 1.95 | G16: OTT | H16: =E16 -> 1.95
A17: 2252CROCB | B17: 2 1/4 " Red Oak #2 Common | C17: 1 | D17: sqft | E17: 1.75 | F17: 1.75 | G17: OTT | H17: =E17 -> 1.75
A18: 3252CROMM | B18: 3 1/4" Red Oak #2 Common | C18: 1 | D18: sqft | E18: 1.7 | F18: 1.7 | G18: OTT | H18: 1.7
A19: 3251CROWD | B19: 3 1/4" Red Oak #1 Common | C19: 1 | D19: sqft | E19: 2.4 | F19: 2.4 | G19: OTT | H19: 2.4 | K19: 2400
A20: 4002CROMM | B20: 4" Red Oak #2 Common | C20: 1 | D20: sqft | E20: 2.25 | F20: 2.25 | G20: OTT | H20: 2.25
A21: 5002CROMT | B21: 5" Red Oak #2 Common | C21: 1 | D21: sqft | E21: 2.23 | F21: 2.23 | G21: OTT | H21: 2.23
A22: 1501CROMI | B22: 1 1/2" Red Oak #1 Common Nested | C22: 1 | D22: sqft | E22: 1.8 | F22: 1.8 | G22: OTT | H22: 1.8
A23: 1501+WOHC | B23: 1 1/2" White Oak #1 and Better Nested | C23: 1 | D23: sqft | E23: 1.8 | F23: 1.8 | G23: OTT | H23: 1.8
I24: SubTotal | K24: =SUM(K3:K23) -> 2814.2675
I25: Tax (8.25%) | K25: =K24*0.0875 -> 246.2484062
I26: Total With Tax | K26: =SUM(K24:K25) -> 3060.515906
I27: Total per SqFt (w/ tax) | K27: =K26/K2 -> 3.060515906
I28: Wood Markup | K28: =((K19/K2)+L28)*K2 -> 3400 | L28: 1
I29: Labor Markup | K29: =L29*K2 -> 5000 | L29: 5
B30: Make a Budgeting thing | I30: Total Quoted | K30: =SUM(K29+K28)+SUM(K3:K14) -> 8814.2675
B31: Negotiate Labor | I31: Total Quoted per SqFt | K31: =K30/K2 -> 8.8142675
B32: average btw low and high
B33: 8.5-9.5 / sqft unfinished & pre
B34: pre finished Margin per SqFt (1 wood / 3 labor)

Sheet QuoteFin
A1: Item Code | B1: Description | C1: Order-qty | D1: Unit | E1: Price | F1: Amount | G1: Tax | H1: Cost / sqft | I1: Notes | M1: not pre
K2: 400
A3: plastic61 | B3: Clear Film 6 mil 10 x 100 | C3: 1 | D3: ea | E3: 33.5 | F3: 33.5 | G3: OTT | H3: =F3/1000 -> 0.0335 | I3: 1000 sqft | K3: =H3*$K$2 -> 13.4
A4: felt14 | B4: 15# Roofing Felt - G.A.P. Label | C4: 1 | D4: ea | E4: 14.5 | F4: 14.5 | G4: OTT | H4: =F4/400 -> 0.03625 | I4: 400 sqft | K4: =H4*$K$2 -> 14.5
A5: 7512PG-10.3M | B5: Staple - 1 1/2" Spotnails | C5: 1 | D5: ea | E5: 48.88 | F5: 48.88 | G5: OTT | H5: =F5/1000 -> 0.04888 | I5: 1 box = 1000 sqft | K5: =H5*$K$2 -> 19.552
A6: mynaae125 | B6: 1 1/4 Pins - Aerosmith | C6: 1 | D6: ea | E6: 65 | F6: 65 | G6: OTT | H6: =F6/1000 -> 0.065 | I6: 1 box = 1000 sqft | K6: =H6*$K$2 -> 26
A7: plywood5/8 | B7: 5/8" Plywood - 19/32 PRS 40/20 Ext 1 SYP | C7: 1 | D7: ea | E7: 2.23 | F7: 2.23 | G7: OTT | H7: =F7/32 -> 0.0696875 | I7: 1 Sheet = 32 sqft | K7: =H7*$K$2 -> 27.875
I10: SubTotal | K10: =SUM(K3:K9) -> 101.327
I11: Tax (8.25%) | K11: =K10*0.0875 -> 8.8661125
I12: Total With Tax | K12: =SUM(K10:K11) -> 110.1931125
I13: Total per SqFt (w/ tax) | K13: =K12/K2 -> 0.2754827812
I14: Wood Markup | K14: =((#REF!/K2)+L14)*K2 ->  | L14: 1
I15: Labor Markup | K15: =L15*K2 -> 1200 | L15: 3
B16: Make a Budgeting thing | I16: Total Quoted | K16: =SUM(K15+K14)+SUM(K3:K8) -> 
B17: Negotiate Labor | I17: Total Quoted per SqFt | K17: =K16/K2 -> 
B18: average btw low and high
B19: 8.5-9.5 / sqft unfinished & pre
B20: pre finished Margin per SqFt (1 wood / 3 labor)

Sheet Scratch
A2: http://www.floorstores.com/hardwood_catalog.aspx
A4: http://www.shawfloors.com/hardwood-floors/Dark
A6: http://www.lumberliquidators.com/catalog/thumbnail.jsp?categoryId=348&sectionId=1&sort=TA&subCategoryId=0&ref=By%20Category;274500000
A8: http://www.woodflooringproducts.com/catalogs/index.asp?category=316875&count=1
A10: http://www.flooringexpertsusa.com/buy-hardwood-flooring-online.html

Sheet Sheet4
A2: Quote Details -- Unfinished | D2: Quote Details -- Finished
A4: 3 1/4" Red Oak #1 Common | D4: 3/4" x 2-1/4" Select Red Oak, Clear Finish, Select
A5: Total Square Feet | B5: 550 | D5: Total Square Feet | E5: =B5 -> 550
A6: Materials SubTotal | B6: =SUM(B25:B36) -> 239.938625 | D6: Materials SubTotal | E6: =SUM(E25:E29) -> 139.324625
A7: Wood SubTotal (pre-markup) | B7: =B21 -> 1320 | D7: Wood SubTotal (pre-markup) | E7: =E21 -> 3212
A8: Tax (8.25%) | B8: =(SUM(B6:B7)*B46) -> 128.6949366 | D8: Tax (8.25%) | E8: =SUM(E6:E7)*E39 -> 276.4842816
A9: Total With Tax | B9: =SUM(B6:B8) -> 1688.633562 | D9: Total With Tax | E9: =SUM(E6:E8) -> 3627.808907
A10: Total cost of materials per SqFt (w/ tax) | B10: =B9/B5 -> 3.070242839 | D10: Total cost of materials per SqFt (w/ tax) | E10: =E9/E5 -> 6.596016194
A11: New Cost of Wood w/ Markup | B11: =((B7/B5)+B39)*B5 -> 1870 | D11: New Cost of Wood w/ Markup | E11: =((E7/E5)+E32)*E5 -> 3762
A12: Labor | B12: =B5*B40 -> 2750 | D12: Labor | E12: =E5*E33 -> 1650
A13: Total Price Quoted | B13: =(B6*(1+B46))+(B7*B46)+B11+B12 -> 4988.633562 | D13: Total Price Quoted | E13: =(E6*(1+E39))+(E7*E39)+E11+E12 -> 5827.808907
A14: Total Quoted per SqFt | B14: =B13/B5 -> 9.070242839 | D14: Total Quoted per SqFt | E14: =E13/E5 -> 10.59601619
A15: Transportation Costs | D15: Transportation Costs
A16: Costs After Transportation | D16: Costs After Transportation
A19: Details | D19: Details
A20: Wood | D20: Wood
A21: 3 1/4" Red Oak #1 Common | B21: 1320 | D21: 3/4" x 2-1/4" Select Red Oak, Clear Finish, Select | E21: =E22*E5 -> 3212
A22: Cost per Square Foot | B22: =B7/B5 -> 2.4 | D22: Cost per Square Foot | E22: 5.84
A24: Materials | D24: Materials
A25: Polo Plaz 5Gal Supreme Finish Satin | B25: =QuoteUnFin!$H$3*$B$5 -> 35.475 | D25: Clear Film 6 mil 10 x 100 | E25: =QuoteUnFin!$H$5*$B$5 -> 18.425
A26: BonaKemi DriFast 1Gal Stain Antique Brown | B26: =QuoteUnFin!$H$4*$B$5 -> 33.044 | D26: 15# Roofing Felt - G.A.P. Label | E26: =QuoteUnFin!$H$6*$B$5 -> 19.9375
A27: Clear Film 6 mil 10 x 100 | B27: =QuoteUnFin!$H$5*$B$5 -> 18.425 | D27: Staple - 1 1/2" Spotnails | E27: =QuoteUnFin!$H$7*$B$5 -> 26.884
A28: 15# Roofing Felt - G.A.P. Label | B28: =QuoteUnFin!$H$6*$B$5 -> 19.9375 | D28: 1 1/4 Pins - Aerosmith | E28: =QuoteUnFin!$H$8*$B$5 -> 35.75
A29: Staple - 1 1/2" Spotnails | B29: =QuoteUnFin!$H$7*$B$5 -> 26.884 | D29: 5/8" Plywood - 19/32 PRS 40/20 Ext 1 SYP | E29: =QuoteUnFin!$H$9*$B$5 -> 38.328125
A30: 1 1/4 Pins - Aerosmith | B30: =QuoteUnFin!$H$8*$B$5 -> 35.75
A31: 5/8" Plywood - 19/32 PRS 40/20 Ext 1 SYP | B31: =QuoteUnFin!$H$9*$B$5 -> 38.328125 | D31: Markup
A32: 7 7/8 x 29 1/2 Norton Belt 36 Grit Silicon Carbide | B32: =QuoteUnFin!$H$10 -> 15.25 | D32: Wood | E32: 1
A33: 7 7/8 x 29 1/2 Norton Belt 80 Grit Silicon Carbide | B33: =QuoteUnFin!$H$11 -> 6.37 | D33: Labor | E33: 3
A34: 16in Norton Screen 80 Grit | B34: =QuoteUnFin!$H$12 -> 5.25
A35: 7 x 7/8 Norton Edger Disc Silicon Carbide 80 Grit | B35: =QuoteUnFin!$H$13*$B$5 -> 2.75 | D35: Distance
A36: 7 x 7/8 Norton Edger Disc Silicon Carbide 100 Grit | B36: =QuoteUnFin!$H$14*$B$5 -> 2.475 | D36: Miles Traveled
D37: Total Cost
A38: Markup
A39: Wood | B39: 1 | D39: Tax Rate | E39: 0.0825
A40: Labor | B40: 5
D41: Materials | E41: Qty. Used
A42: Distance | D42: Clear Film 6 mil 10 x 100 | E42: =$B$5/1000 -> 0.55
A43: Miles Traveled | D43: 15# Roofing Felt - G.A.P. Label | E43: =$B$5/400 -> 1.375
A44: Total Cost | D44: Staple - 1 1/2" Spotnails | E44: =$B$5/1000 -> 0.55
D45: 1 1/4 Pins - Aerosmith | E45: =$B$5/1000 -> 0.55
A46: Tax Rate | B46: 0.0825 | D46: 5/8" Plywood - 19/32 PRS 40/20 Ext 1 SYP | E46: =$B$5/32 -> 17.1875
A48: Materials | B48: Qty. Used
A49: Polo Plaz 5Gal Supreme Finish Satin | B49: =B5/2000 -> 0.275
A50: BonaKemi DriFast 1Gal Stain Antique Brown | B50: =B5/500 -> 1.1
A51: Clear Film 6 mil 10 x 100 | B51: =$B$5/1000 -> 0.55
A52: 15# Roofing Felt - G.A.P. Label | B52: =$B$5/400 -> 1.375
A53: Staple - 1 1/2" Spotnails | B53: =$B$5/1000 -> 0.55
A54: 1 1/4 Pins - Aerosmith | B54: =$B$5/1000 -> 0.55
A55: 5/8" Plywood - 19/32 PRS 40/20 Ext 1 SYP | B55: =$B$5/32 -> 17.1875
A56: 7 7/8 x 29 1/2 Norton Belt 36 Grit Silicon Carbide | B56: =$B$5/1000 -> 0.55
A57: 7 7/8 x 29 1/2 Norton Belt 80 Grit Silicon Carbide | B57: =$B$5/1000 -> 0.55
A58: 16in Norton Screen 80 Grit | B58: =$B$5/100 -> 5.5
A59: 7 x 7/8 Norton Edger Disc Silicon Carbide 80 Grit | B59: =$B$5/100 -> 5.5
A60: 7 x 7/8 Norton Edger Disc Silicon Carbide 100 Grit | B60: =$B$5/100 -> 5.5
